fUST/lending_fUST_20240821
["ID","MTS","AMOUNT","RATE_DAILY","PERIOD"]
[335426997,1724223031804,-156.66298998,0.0002,2]
[335426999,1724223031813,-183.607757,0.00020071,2]
[335427001,1724223031823,-500.0,0.00020293,2]
[335427003,1724223031832,-312.90681455,0.000204,5]
[335427005,1724223031842,-183.607757,0.00020408,2]
[335427007,1724223031852,-286.04257,0.00020707,2]
[335427009,1724223031862,-150.0,0.00021,2]
[335427011,1724223031872,-500.0,0.00021105,2]
[335427012,1724223031882,-1766.16481466,0.00021463,2]
[335427013,1724223031894,-258.18004786,0.00021463,2]
[335427014,1724223031905,-3566.86953866,0.00021463,2]
[335427040,1724223037816,-275.358953,0.00014247,2]
[335427043,1724223037827,-275.358953,0.00020707,2]
[335427045,1724223037836,-19308.78559882,0.00021463,2]
[335427047,1724223037846,-211.9946962,0.00021547,2]
[335427049,1724223037855,-500.0,0.00022675,2]
[335427051,1724223037865,-500.0,0.00022786,2]
[335427053,1724223037875,-882.99597685,0.00023437,2]
[335427055,1724223037885,-211.99469617,0.00023455,2]
[335427057,1724223037895,-160.8404123,0.0002346,2]
[335427059,1724223037904,-164.237471,0.00024628,2]
[335427061,1724223037914,-182.70318712,0.00024756,2]
[335427063,1724223037925,-800.0,0.00024974,2]
[335427065,1724223037938,-156.04387546,0.00025,2]
[335427067,1724223037947,-500.0,0.00025095,2]
[335427069,1724223037957,-500.0,0.00025225,2]
[335427071,1724223037966,-211.99469617,0.00025362,2]
[335427073,1724223037975,-500.30425983,0.00025682,2]
[335427075,1724223037985,-500.0,0.00026223,2]
[335427077,1724223037995,-275.358953,0.00027167,2]
[335427079,1724223038005,-211.99469617,0.0002727,2]
[335427081,1724223038015,-489.731179,0.00027944,2]
[335427083,1724223038025,-500.0,0.00028445,2]
[335427085,1724223038035,-500.0,0.00028967,2]
[335427087,1724223038044,-211.99469617,0.00029177,2]
[335427089,1724223038054,-500.0,0.00029611,2]
[335427091,1724223038063,-178.72751622,0.0003,5]
[335427093,1724223038073,-500.0,0.00030852,7]
[335427095,1724223038083,-211.99469617,0.00031085,2]
[335427097,1724223038092,-307.1663741,0.00032137,2]
[335427099,1724223038102,-197.308934,0.00032314,2]
[335427101,1724223038111,-500.0,0.00032554,7]
[335427103,1724223038121,-211.99469617,0.00032992,2]
[335427105,1724223038130,-156.21496732,0.00033234,3]
[335427107,1724223038140,-500.0,0.00033433,7]
[335427109,1724223038150,-275.358953,0.00033626,2]
[335427111,1724223038159,-452.66347109,0.00034,60]
[335427113,1724223038168,-3001.0,0.00034,7]
[335427115,1724223038178,-8630.15053667,0.00034,4]
[335427117,1724223038187,-185.531989,0.00034,21]
[335427120,1724223038199,-3822.07497688,0.00034117,2]
[335427122,1724223038210,-500.0,0.00034246,21]
[335427124,1724223038221,-500.0,0.00034246,21]
[335427126,1724223038231,-211.65073,0.00034247,2]
[335427128,1724223038240,-3822.07497688,0.00034273,2]
[335427130,1724223038250,-500.0,0.00034436,21]
[335427132,1724223038259,-500.0,0.0003452,7]
[335427134,1724223038269,-2000.0,0.0003457,2]
[335427136,1724223038279,-5441.01,0.00034669,21]
[335427138,1724223038288,-14205.0382011,0.00034679,4]
[335427140,1724223038299,-28692.09,0.00034688,3]
[335427142,1724223038309,-34430.5,0.00034698,3]
[335427144,1724223038318,-7727.0,0.0003474,2]
[335427146,1724223038328,-166.056,0.0003474,2]
[335427148,1724223038337,-239.566,0.0003474,2]
[335427150,1724223038347,-245.769,0.0003474,2]
[335427152,1724223038356,-3822.07497689,0.00034748,2]
[335427154,1724223038365,-500.0,0.00034794,21]
[335427156,1724223038375,-500.0,0.00034794,21]
[335427158,1724223038384,-500.0,0.00034794,21]
[335427160,1724223038393,-500.0,0.00034794,21]
[335427162,1724223038403,-500.0,0.00034794,21]
[335427165,1724223038413,-2881.07782415,0.000348,2]
[335427167,1724223038425,-118.92217585,0.000348,2]
[335427169,1724223038435,-396.6010284,0.0003482,7]
[335427171,1724223038446,-500.0,0.0003482,7]
[335427173,1724223038455,-159.43280527,0.0003482,7]
[335427175,1724223038464,-500.0,0.0003482,7]
[335427177,1724223038474,-500.0,0.0003482,7]
[335427179,1724223038483,-500.0,0.0003482,7]
[335427181,1724223038492,-307.46524816,0.0003482,7]
[335427231,1724223038955,-192.53475184,0.0003482,7]
[335427233,1724223038964,-500.0,0.0003482,7]
[335427235,1724223038975,-189.87323575,0.0003482,7]
[335427270,1724223039299,-249.87724163,0.0003482,7]
[335427372,1724223040382,-60.24952262,0.0003482,7]
[335427374,1724223040392,-500.0,0.0003482,7]
[335427376,1724223040401,-194.04949076,0.0003482,7]
[335427378,1724223040411,-500.0,0.0003482,7]
[335427380,1724223040420,-500.0,0.0003482,7]
[335427382,1724223040430,-500.0,0.0003482,7]
[335427384,1724223040442,-500.0,0.0003482,7]
[335427386,1724223040451,-88888.0,0.00034821,5]
[335427388,1724223040460,-500.0,0.00034899,21]
[335427390,1724223040470,-303.82362742,0.000349,4]
[335427392,1724223040481,-2530.26683329,0.000349,60]
[335427394,1724223040491,-285.3614456,0.000349,3]
[335427397,1724223040500,-385.83533853,0.000349,4]
[335427399,1724223040509,-6845.25068143,0.000349,7]
[335427401,1724223040519,-211.99469617,0.000349,2]
[335427403,1724223040528,-271.66030088,0.000349,2]
[335427404,1724223040537,-14205.0382011,0.00034909,4]
[335427407,1724223040548,-500.0,0.0003492,21]
[335427409,1724223040558,-500.0,0.0003492,21]
[335427411,1724223040567,-500.0,0.0003492,21]
[335427413,1724223040575,-500.0,0.0003492,21]
[335427415,1724223040585,-14205.0382011,0.00034921,4]
[335427417,1724223040595,-40602.11577123,0.00034921,4]
[335427665,1724223043026,-378.84863894,0.00034921,4]
[335427799,1724223331842,265.28688152,0.00013971,2]
[335427801,1724223952056,862.64603536,0.00013971,2]
[335427802,1724223976887,318.55706663,0.00013971,2]
[335427803,1724224036143,-204.20062038,0.00014519,2]
[335427804,1724224037136,-126.02847623,0.00014519,2]
[335427805,1724224037161,-368.48620647,0.00016601,2]
[335427806,1724224044108,-559.88603532,0.00016601,2]
[335427807,1724224044134,-245.44464904,0.00020199,2]
[335427809,1724224120012,3275.23920114,0.00013971,2]
[335427810,1724224146114,-151.48342059,9.9e-05,2]
[335427811,1724224146136,-300.0,0.0001397,2]
[335427812,1724224146157,-52208.64715857,0.00013971,2]
[335427813,1724224146178,-7014.77930494,0.00014245,2]
[335427814,1724224146199,-8845.25511796,0.00014245,2]
[335427815,1724224146220,-266.714154,0.00014247,2]
[335427816,1724224146242,-2143.02877073,0.00014519,2]
[335427817,1724224146264,-194.85160042,0.00014519,2]
[335427818,1724224146285,-371.4407541,0.00014519,3]
[335427819,1724224146306,-521.35824671,0.00014519,2]
[335427820,1724224146327,-301.59897552,0.00014519,2]
[335427821,1724224146349,-569.6147727,0.00014519,2]
[335427822,1724224146375,-342.54706255,0.00014519,2]
[335427823,1724224146397,-2282.67176676,0.00014519,3]
[335427824,1724224146420,-202.2562543,0.00014519,2]
[335427825,1724224146443,-780.13119624,0.00014519,2]
[335427826,1724224146466,-810.8243326,0.00014519,2]
[335427827,1724224146487,-320.30409158,0.00014519,2]
[335427828,1724224146509,-5.08633979,0.00014519,2]
[335427829,1724224152093,-623.17313602,0.00014519,2]
[335427830,1724224152121,-871.74052419,0.00014519,2]
[335427831,1724224152142,-413.45265018,0.00014519,2]
[335427832,1724224152165,-420.0,0.00015367,2]
[335427833,1724224152186,-277.282325,0.00016002,2]
[335427834,1724224152208,-587.0,0.00016903,2]
[335427835,1724224152231,-500.0,0.00016933,2]
[335427836,1724224152254,-500.0,0.00016933,2]
[335427837,1724224152274,-193.26733592,0.00016933,2]
[335427838,1724224153939,194.85160042,0.00014245,2]
[335427839,1724224154755,500.0,0.00016933,2]
[335427840,1724224154806,102.36696059,0.00016933,2]
[335427841,1724224169096,-234.7531049,0.00014245,3]
[335427842,1724224171121,-582.93946366,0.00014245,3]
[335427843,1724224171789,255.32908151,0.00014519,2]
[335427857,1724224231944,-621.06231277,9.9e-05,2]
[335427858,1724224231954,-4790.27388199,0.00013971,2]
[335427859,1724224231967,-4870.94130779,0.00013971,2]
[335427860,1724224231978,-300.0,0.00014244,2]
[335427861,1724224231990,-4528.26939411,0.00014245,2]
[335427862,1724224232000,-607.31695385,0.00014245,2]
[335427863,1724224232010,-274.09528428,0.00014519,2]
[335427864,1724224232019,-154.76012181,0.00014519,4]
[335427865,1724224232028,-4354.8124308,0.00014519,2]
[335427866,1724224232047,-154.8883054,0.00014519,2]
[335427867,1724224232059,-4534.7602402,0.00014519,2]
[335427868,1724224232421,-36803.42378254,0.00013971,2]
[335427876,1724224238162,-18680.46257717,0.00013971,2]
[335427877,1724224238171,-372.21892543,0.00014245,2]
[335427878,1724224238189,-8473.75411285,0.00014245,2]
[335427879,1724224238199,-187.02119615,0.00014519,2]
[335427880,1724224238209,-1768.7788154,0.00014519,2]
[335427881,1724224238218,-154.68290005,0.00014519,2]
[335427882,1724224238228,-483.50683086,0.00014519,2]
[335427883,1724224238239,-308.02003954,0.00014519,2]
[335427884,1724224238248,-281.80801593,0.00014519,2]
[335427885,1724224238258,-331.09414061,0.00014519,2]
[335427886,1724224238267,-256.27464277,0.00014519,2]
[335427887,1724224238277,-248.91874317,0.00014519,2]
[335427888,1724224238287,-408.27908237,0.00014519,2]
[335427889,1724224238296,-741.21525095,0.00014519,2]
[335427890,1724224238305,-501.15753685,0.00014519,2]
[335427891,1724224238315,-223.38818843,0.00014519,2]
[335427892,1724224238324,-420.0,0.00015668,2]
[335427893,1724224238334,-204.17009862,0.00016501,2]
[335427894,1724224238344,-796.862522,0.00016988,2]
[335427895,1724224238353,-174.0,0.00017235,2]
[335427896,1724224238363,-782.718708,0.00017533,2]
[335427897,1724224238373,-277.68803325,0.00017533,2]
[335427898,1724224238383,-154.8350703,0.00017533,2]
[335427899,1724224238393,-6113.26061441,0.00017533,2]
[335427900,1724224238404,-350.81892735,0.00017597,2]
[335427901,1724224238414,-154.88620682,0.00017598,2]
[335427902,1724224238423,-154.83242105,0.00017598,2]
[335427903,1724224238434,-2282.92421799,0.00017598,3]
[335427904,1724224238444,-5986.43214692,0.00017598,2]
[335427905,1724224238454,-991.25718944,0.00017598,2]
[335427906,1724224238463,-1500.0,0.00017598,2]
[335427907,1724224238473,-410.76270684,0.00017598,2]
[335427908,1724224238483,-817.69256856,0.00017598,4]
[335427909,1724224238493,-10343.5134042,0.00020092,2]
[335427910,1724224238503,-12390.9713654,0.00020164,2]
[335427911,1724224238512,-931.3701559,0.00020199,2]
[335427912,1724224238522,-287.17173053,0.00020199,2]
[335427913,1724224238532,-15945.1497758,0.00020199,2]
[335427914,1724224238541,-266.714154,0.00020707,2]
[335427915,1724224238550,-164.237471,0.00022566,2]
[335427916,1724224238560,-499.84241344,0.00023013,2]
[335427917,1724224238569,-500.0,0.00023013,2]
[335427918,1724224238579,-500.0,0.00023013,2]
[335427919,1724224238589,-500.0,0.00023013,2]
[335427920,1724224238599,-500.0,0.00023013,2]
[335427921,1724224238609,-500.0,0.00023013,2]
[335427922,1724224238618,-500.0,0.00023013,2]
[335427923,1724224238627,-500.0,0.00023013,2]
[335427924,1724224238636,-500.0,0.00023013,2]
[335427925,1724224238646,-500.0,0.00023013,2]
[335427926,1724224238656,-24900.0,0.00023014,2]
[335427927,1724224238665,-165.70232,0.00023122,2]
[335427928,1724224238674,-165.70232,0.00023294,2]
[335427929,1724224238683,-165.70232,0.00023466,2]
[335427930,1724224238692,-165.70232,0.00023638,2]
[335427931,1724224238702,-165.70232,0.0002381,2]
[335427932,1724224238711,-165.70232,0.00023982,2]
[335427933,1724224238720,-165.70232,0.00024154,2]
[335427934,1724224238729,-165.70232,0.00024326,2]
[335427935,1724224238739,-6845.25068143,0.00024483,2]
[335427936,1724224238748,-953.53947811,0.00024651,2]
[335427937,1724224238757,-882.99597685,0.00024662,2]
[335427938,1724224238767,-160.8404123,0.0002469,2]
[335427939,1724224238776,-435.0,0.0002469,2]
[335427940,1724224238786,-796.862522,0.00025482,2]
[335427941,1724224238795,-165.979066,0.00025705,2]
[335427942,1724224238805,-266.714154,0.00027167,2]
[335427943,1724224238814,-178.72751622,0.0003,5]
[335427944,1724224238824,-156.21496732,0.00033234,3]
[335427945,1724224238834,-7727.0,0.00033267,2]
[335427946,1724224238843,-266.714154,0.00033626,2]
[335427947,1724224238853,-42645.83,0.00033878,3]
[335427948,1724224238866,-12390.9713654,0.00033889,4]
[335427949,1724224238876,-2000.0,0.00033899,2]
[335427950,1724224238886,-545.90688492,0.00033973,2]
[335427951,1724224238896,-37172.9140962,0.0003399,4]
[335427952,1724224238905,-5375.23,0.00033999,21]
[335427953,1724224238915,-71076.16377499,0.00034,9]
[335427954,1724224238924,-11765.97801136,0.00034,9]
[335427955,1724224238934,-26848.82,0.00034,5]
[335427956,1724224238943,-49895.4964,0.00034,30]
[335427957,1724224238954,-94875.80827,0.00034,27]
[335427958,1724224238964,-409.0504316,0.0003411,2]
[335427959,1724224238973,-409.0504316,0.0003411,2]
[335427960,1724224238983,-409.0504316,0.0003411,2]
[335427961,1724224238992,-366.1992773,0.0003411,2]
[335427962,1724224239001,-201.068193,0.00034247,2]
[335427963,1724224239012,-1000.0,0.000343,2]
[335427964,1724224239021,-198.72233402,0.00034448,2]
[335427965,1724224239031,-4575.38561247,0.00034449,2]
[335427966,1724224239040,-772.47489114,0.000345,120]
[335427967,1724224239050,-1000.0,0.000345,2]
[335427968,1724224239059,-5031.84946499,0.00034575,50]
[335427969,1724224239070,-151.0,0.000346,2]
[335427970,1724224239079,-1871.58323989,0.000346,120]
[335427971,1724224239088,-1000.0,0.000346,3]
[335427972,1724224239098,-1000.0,0.000346,2]
[335427973,1724224239108,-4575.38561248,0.00034653,2]
[335427974,1724224239118,-12390.9713654,0.00034689,4]
[335427975,1724224239133,-743.0,0.000347,2]
[335427976,1724224239142,-5730.78440786,0.0003473,4]
[335427982,1724224240310,-154.81475424,0.00014519,2]
[335427983,1724224240323,-1323.85775203,0.00014519,2]
[335427984,1724224240333,-301.5399063,0.00014519,2]
[335427985,1724224240343,-6660.18695754,0.0003473,4]
[335427986,1724224240353,-264.47,0.0003473,7]
[335427987,1724224240363,-151.0,0.0003473,7]
[335427988,1724224240373,-151.0,0.0003473,7]
[335427989,1724224240382,-150.63,0.0003474,2]
[335427990,1724224240393,-1126.35,0.00034794,21]
[335427991,1724224240404,-1126.35,0.00034794,21]
[335427992,1724224240414,-1126.35,0.00034794,21]
[335427993,1724224240424,-1126.35,0.00034794,21]
[335427994,1724224240433,-1126.35,0.00034794,21]
[335427995,1724224240442,-1126.35,0.00034794,21]
[335427996,1724224240452,-1126.35,0.00034794,21]
[335427997,1724224240461,-1126.35,0.00034794,21]
[335427998,1724224240471,-1000.0,0.000348,3]
[335427999,1724224240482,-12390.9713654,0.0003482,4]
[335428000,1724224240492,-12619.4245526,0.0003483,5]
[335428001,1724224240502,-24343.44652071,0.00034831,120]
[335428002,1724224240511,-300.0,0.000349,17]
[335428003,1724224240520,-66121.17,0.000349,14]
[335428004,1724224240530,-151.0,0.000349,7]
[335428005,1724224240540,-151.0,0.000349,7]
[335428006,1724224240550,-1126.35,0.0003491,21]
[335428007,1724224240559,-154.155532,0.00034911,7]
[335428008,1724224240570,-771.72487,0.00034911,7]
[335428009,1724224240579,-771.72487,0.00034911,7]
[335428010,1724224240588,-111518.742289,0.00034921,4]
[335428011,1724224240597,-303.82362742,0.00034921,4]
[335428012,1724224240607,-285.3614456,0.00034921,3]
[335428013,1724224240616,-153.316594,0.00034921,7]
[335428014,1724224240625,-251.922161,0.00034921,2]
[335428015,1724224240635,-151.0,0.00034921,7]
[335428016,1724224240644,-151.0,0.00034921,7]
[335428017,1724224240653,-152.992392,0.00034921,7]
[335428018,1724224240662,-152.992392,0.00034921,7]
[335428019,1724224240672,-151.0,0.00034921,7]
[335428020,1724224240682,-151.0,0.00034921,7]
[335428021,1724224240691,-3631.4891642,0.00034928,2]
[335428022,1724224240701,-1126.35,0.00034929,21]
[335428023,1724224240711,-1126.35,0.0003493,21]
[335428024,1724224240720,-1126.35,0.0003493,21]
[335428025,1724224240730,-1126.35,0.0003493,21]
[335428026,1724224240739,-1126.35,0.0003493,21]
[335428027,1724224240748,-1126.35,0.0003493,21]
[335428028,1724224240757,-1126.35,0.0003493,21]
[335428029,1724224240832,-1126.35,0.0003493,21]
[335428030,1724224240851,-1126.35,0.0003493,21]
[335428031,1724224240861,-1126.35,0.0003493,21]
[335428032,1724224240870,-1126.35,0.0003493,21]
[335428033,1724224240879,-1126.35,0.0003493,21]
[335428034,1724224240889,-1126.35,0.0003493,21]
[335428035,1724224240899,-1126.35,0.0003493,21]
[335428036,1724224240908,-1126.48989256,0.0003493,21]
[335428037,1724224240917,-372.00987897,0.0003493,7]
[335428038,1724224240927,-485.05234499,0.0003493,7]
[335428039,1724224240936,-500.0,0.0003493,7]
[335428040,1724224240945,-166.2989647,0.0003493,7]
[335428041,1724224240954,-500.0,0.0003493,7]
[335428042,1724224240964,-500.0,0.0003493,7]
[335428043,1724224240973,-500.0,0.0003493,7]
[335428044,1724224240983,-500.0,0.0003493,7]
[335428045,1724224240992,-500.0,0.0003493,7]
[335428046,1724224241001,-500.0,0.0003493,7]
[335428047,1724224241011,-500.0,0.0003493,7]
[335428048,1724224241020,-500.0,0.0003493,7]
[335428049,1724224241029,-500.0,0.0003493,7]
[335428050,1724224241039,-500.0,0.0003493,7]
[335428051,1724224241048,-500.0,0.0003493,7]
[335428052,1724224241057,-500.0,0.0003493,7]
[335428053,1724224241067,-500.0,0.0003493,7]
[335428054,1724224241076,-500.0,0.0003493,7]
[335428055,1724224241085,-500.0,0.0003493,7]
[335428056,1724224241093,-500.0,0.0003493,7]
[335428057,1724224241102,-500.0,0.0003493,7]
[335428058,1724224241111,-500.0,0.0003493,7]
[335428059,1724224241120,-500.0,0.0003493,7]
[335428060,1724224241129,-500.0,0.0003493,7]
[335428061,1724224241138,-350.36003997,0.0003493,7]
[335428062,1724224241147,-500.0,0.0003493,7]
[335428063,1724224241156,-500.0,0.0003493,7]
[335428064,1724224241166,-500.0,0.0003493,7]
[335428065,1724224241175,-500.0,0.0003493,7]
[335428066,1724224241184,-500.0,0.0003493,7]
[335428067,1724224241194,-500.0,0.0003493,7]
[335428068,1724224241203,-500.0,0.0003493,7]
[335428069,1724224241213,-500.0,0.0003493,7]
[335428070,1724224241222,-500.0,0.0003493,7]
[335428071,1724224241231,-500.0,0.0003493,7]
[335428072,1724224241244,-151.0,0.0003493,7]
[335428073,1724224241255,-288.183888,0.0003493,7]
[335428074,1724224241265,-500.0,0.0003493,21]
[335428075,1724224241274,-500.0,0.0003493,21]
[335428076,1724224241283,-205.99580125,0.0003493,21]
[335428077,1724224241292,-500.0,0.0003493,21]
[335428078,1724224241301,-945.76524545,0.00034931,21]
[335428079,1724224241310,-1004.6,0.00034931,21]
[335428080,1724224241321,-8670.43,0.00034931,21]
[335428081,1724224241330,-1004.6,0.00034931,21]
[335428082,1724224241339,-500.0,0.00034931,21]
[335428083,1724224241349,-500.0,0.00034931,21]
[335428084,1724224241358,-500.0,0.00034931,21]
[335428085,1724224241367,-8670.43,0.00034931,21]
[335428086,1724224241377,-1004.6,0.00034931,21]
[335428087,1724224241386,-499.06762616,0.00034931,21]
[335428088,1724224241397,-500.0,0.00034931,21]
[335428089,1724224241408,-1004.6,0.00034931,21]
[335428090,1724224241417,-8670.43,0.00034931,21]
[335428091,1724224241426,-500.0,0.00034931,21]
[335428092,1724224241435,-8670.43,0.00034931,21]
[335428093,1724224241444,-1004.6,0.00034931,21]
[335428094,1724224241454,-1004.6,0.00034931,21]
[335428095,1724224241463,-500.0,0.00034931,21]
[335428096,1724224241472,-8670.43,0.00034931,21]
[335428097,1724224241483,-8670.43,0.00034931,21]
[335428098,1724224241492,-1004.6,0.00034931,21]
[335428099,1724224241501,-8670.43,0.00034931,21]
[335428100,1724224241511,-500.0,0.00034931,21]
[335428101,1724224241520,-8670.43,0.00034931,21]
[335428102,1724224241529,-500.0,0.00034931,21]
[335428103,1724224241540,-8670.43,0.00034931,21]
[335428104,1724224241548,-500.0,0.00034931,21]
[335428105,1724224241558,-500.0,0.00034931,21]
[335428106,1724224241567,-8670.5596877,0.00034931,21]
[335428107,1724224241576,-500.0,0.00034931,21]
[335428108,1724224241585,-500.0,0.00034931,21]
[335428109,1724224241595,-1004.6,0.00034931,21]
[335428110,1724224241604,-500.0,0.00034931,21]
[335428111,1724224241614,-500.0,0.00034931,21]
[335428112,1724224241623,-1004.6,0.00034931,21]
[335428113,1724224241632,-500.0,0.00034931,21]
[335428114,1724224241641,-500.0,0.00034931,21]
[335428115,1724224241650,-1004.6,0.00034931,21]
[335428116,1724224241659,-500.0,0.00034931,21]
[335428117,1724224241669,-500.0,0.00034931,21]
[335428118,1724224241678,-500.0,0.00034931,21]
[335428119,1724224241688,-1004.6,0.00034931,21]
[335428120,1724224241698,-1784.92,0.00034931,21]
[335428121,1724224241708,-500.0,0.00034931,21]
[335428122,1724224241718,-500.0,0.00034931,21]
[335428123,1724224241727,-500.0,0.00034931,21]
[335428124,1724224241736,-1784.92,0.00034931,21]
[335428125,1724224241745,-500.0,0.00034931,21]
[335428126,1724224241754,-500.0,0.00034931,21]
[335428127,1724224241764,-1004.6,0.00034931,21]
[335428128,1724224241773,-1784.92,0.00034931,21]
[335428129,1724224241783,-500.0,0.00034931,21]
[335428130,1724224241792,-1004.6,0.00034931,21]
[335428131,1724224241801,-183.03915491,0.00034931,21]
[335428132,1724224241812,-500.0,0.00034931,21]
[335428133,1724224241824,-1784.92,0.00034931,21]
[335428134,1724224241834,-500.0,0.00034931,21]
[335428135,1724224241843,-500.0,0.00034931,21]
[335428136,1724224241854,-1004.6,0.00034931,21]
[335428137,1724224241864,-500.0,0.00034931,21]
[335428138,1724224241875,-1784.92,0.00034931,21]
[335428139,1724224241885,-500.0,0.00034931,21]
[335428140,1724224241895,-1004.6,0.00034931,21]
[335428141,1724224241905,-500.0,0.00034931,21]
[335428142,1724224241917,-500.0,0.00034931,21]
[335428143,1724224241927,-500.0,0.00034931,21]
[335428144,1724224241939,-1004.6,0.00034931,21]
[335428145,1724224241950,-199.89472645,0.00034931,21]
[335428146,1724224241959,-500.0,0.00034931,21]
[335428147,1724224241970,-1004.6,0.00034931,21]
[335428148,1724224241979,-500.0,0.00034931,21]
[335428149,1724224241991,-1004.6,0.00034931,21]
[335428150,1724224242002,-500.0,0.00034931,21]
[335428151,1724224242013,-150.25957354,0.00034931,21]
[335428152,1724224242025,-500.0,0.00034931,21]
[335428153,1724224242035,-500.0,0.00034931,21]
[335428154,1724224242044,-500.0,0.00034931,21]
[335428155,1724224242054,-1784.92,0.00034931,21]
[335428156,1724224242063,-505.12456949,0.00034931,21]
[335428157,1724224242075,-1784.92,0.00034931,21]
[335428158,1724224242084,-1004.6,0.00034931,21]
[335428159,1724224242095,-1784.92,0.00034931,21]
[335428160,1724224242104,-1004.6,0.00034931,21]
[335428161,1724224242115,-1784.92,0.00034931,21]
[335428162,1724224242125,-1004.6,0.00034931,21]
[335428163,1724224242134,-1784.92,0.00034931,21]
[335428164,1724224242144,-1686.9,0.00034931,21]
[335428165,1724224242153,-1004.6,0.00034931,21]
[335428166,1724224242162,-1686.9,0.00034931,21]
[335428167,1724224242172,-1004.68219717,0.00034931,21]
[335428168,1724224242182,-1784.92,0.00034931,21]
[335428169,1724224242191,-503.8232062,0.00034931,21]
[335428170,1724224242202,-1686.9,0.00034931,21]
[335428171,1724224242212,-1784.92,0.00034931,21]
[335428172,1724224242221,-1686.9,0.00034931,21]
[335428173,1724224242231,-1784.92,0.00034931,21]
[335428174,1724224242242,-1686.9,0.00034931,21]
[335428175,1724224242251,-1784.92,0.00034931,21]
[335428176,1724224242260,-1686.9,0.00034931,21]
[335428177,1724224242270,-1784.92,0.00034931,21]
[335428178,1724224242279,-1686.9,0.00034931,21]
[335428179,1724224242289,-500.0,0.00034931,21]
[335428180,1724224242298,-1784.92,0.00034931,21]
[335428181,1724224242308,-500.0,0.00034931,21]
[335428182,1724224242318,-1784.92,0.00034931,21]
[335428183,1724224242327,-1686.9,0.00034931,21]
[335428184,1724224242338,-1784.92,0.00034931,21]
[335428186,1724224242347,-1784.92,0.00034931,21]
[335428191,1724224242427,-500.0,0.00034931,21]
[335428192,1724224242437,-1686.9,0.00034931,21]
[335428193,1724224242447,-500.0,0.00034931,21]
[335428195,1724224242456,-1784.92,0.00034931,21]
[335428197,1724224242466,-1686.9,0.00034931,21]
[335428199,1724224242475,-1784.92,0.00034931,21]
[335428201,1724224242487,-500.0,0.00034931,21]
[335428202,1724224242497,-1686.9,0.00034931,21]
[335428203,1724224242507,-1784.92,0.00034931,21]
[335428204,1724224242517,-500.0,0.00034931,21]
[335428205,1724224242526,-1686.9,0.00034931,21]
[335428206,1724224242536,-1784.92,0.00034931,21]
[335428207,1724224242546,-500.0,0.00034931,21]
[335428208,1724224242555,-1686.9,0.00034931,21]
[335428209,1724224242565,-1784.93560105,0.00034931,21]
[335428210,1724224242575,-1686.9,0.00034931,21]
[335428211,1724224242586,-500.0,0.00034931,21]
[335428214,1724224242595,-500.0,0.00034931,21]
[335428216,1724224242605,-500.0,0.00034931,21]
[335428218,1724224242614,-1686.9,0.00034931,21]
[335428219,1724224242623,-500.0,0.00034931,21]
[335428220,1724224242632,-500.0,0.00034931,21]
[335428221,1724224242642,-1686.9,0.00034931,21]
[335428222,1724224242651,-1686.9,0.00034931,21]
[335428223,1724224242660,-500.0,0.00034931,21]
[335428224,1724224242670,-1686.9,0.00034931,21]
[335428225,1724224242679,-508.10616289,0.00034931,21]
[335428226,1724224242689,-1686.9,0.00034931,21]
[335428227,1724224242699,-500.0,0.00034931,21]
[335428228,1724224242708,-1686.9,0.00034931,21]
[335428229,1724224242718,-500.0,0.00034931,21]